Cogmind - Beta 16 @@@ ROGUE MODE // 2026.02.02 @ 21:30:07 Player: Krysmphoenix Result: Destroyed by Y-45 Defender with Beam Rifle Performance ------------- Evolutions (1) 500 Regions Visited (2) 400 Robots Destroyed (16) 80 Value Destroyed (374) 374 Prototype IDs (1) 20 Alien Tech Used (0) 0 Bonus (0) 0 TOTAL SCORE: 1374 Bonus ------- None Cogmind --------- Core Integrity 0/400 Matter 270/300 Energy 100/100 System Corruption 0% Temperature Cool (9) Movement Core (50) Location -9/Materials Parts ------- > --- POWER (1) -------- (None) > --- PROPULSION (3) --- (None) > --- UTILITY (3) ------ (None) > --- WEAPON (2) ------- Heavy Hammer > --- INVENTORY (5) ---- Ion Engine Hover Unit Improved Hover Unit Improved Hover Unit Improved Hover Unit Peak State ------------ > --- POWER ------------ Ion Engine > --- PROPULSION ------- Wheel Compact Wheel > --- UTILITY ---------- (None) > --- WEAPON ----------- Improved EM Shotgun Beam Rifle > --- INVENTORY -------- Ion Engine Light Ion Engine Hover Unit Small Laser [Rating: 8] Favorites ----------- Power Ion Engine Engine Ion Engine Propulsion Wheel Wheel Wheel Hover Unit Improved Hover Unit Flight Unit Flight Unit Utility Light Armor Plating Device Sensor Array Protection Light Armor Plating Weapon Medium Laser Energy Gun Medium Laser Ballistic Gun Light Assault Rifle Ballistic Cannon Light Cannon Launcher Grenade Launcher Impact Weapon Heavy Hammer Build | -11 -10 -9 ------- Run | Yrd Mat Mat Slots Evolved 2 | . . 2 Power . | . . . Propulsion 1 | . . 1 Utility 1 | . . 1 Weapon . | . . . Parts Attached 23 | 6 9 8 Power 4 | 2 2 . Engine 4 | 2 2 . Core . | . . . Reactor . | . . . Propulsion 8 | 2 2 4 Treads . | . . . Leg . | . . . Wheel 3 | 2 . 1 Hover 4 | . 1 3 Flight 1 | . 1 . Utility 3 | . 2 1 Device 1 | . . 1 Storage . | . . . Processor . | . . . Hackware . | . . . Protection 2 | . 2 . Artifact . | . . . Weapon 8 | 2 3 3 Energy Gun 4 | 1 1 2 Energy Cannon . | . . . Ballistic Gun 1 | 1 . . Ballistic Cannon 1 | . 1 . Launcher 1 | . 1 . Special Weapon . | . . . Impact Weapon 1 | . . 1 Slashing Weapon . | . . . Piercing Weapon . | . . . Special Melee Weapon . | . . . Unidentified Prototypes 1 | . . 1 Parts Lost 10 | . 1 9 Power 1 | . . 1 Propulsion 5 | . 1 4 Utility 1 | . . 1 Weapon 3 | . . 3 Highest Loss Streak 5 | . 1 5 To Critical Strikes . | . . . Average Backups 3 | . 3 3 Power . | . . 1 Propulsion 1 | . 2 1 Utility . | . . . Weapon . | . 1 . Tool/Special . | . . . Unused Backups 4 | . 1 3 Power 1 | . . 1 Propulsion 2 | . . 2 Utility . | . . . Weapon 1 | . 1 . Tool/Special . | . . . Average Slot Usage (%) 55 | . 69 36 Engine 12 | . 14 9 Wheel 14 | . 19 7 Hover 1 | . . 4 Flight 1 | . 1 . Device 1 | . . 2 Protection 6 | . 11 . Energy Gun 14 | . 16 11 Launcher 2 | . 3 . Peak Build Rating 8 | 5 7 8 Average Rating 4 | 3 4 4 On Entrance 2 | . 4 2 Avg Prop Armor Cover (%) . | . . . Naked Turns . | . . . Heaviest Build 14 | 8 14 11 Greatest Support 26 | 26 26 26 Greatest Overweight (x) 2 | . 1 2 Average Overweight (x) . | . . . Largest Inventory Capacity 5 | 5 5 5 Average Capacity 5 | 5 5 5 Most Carried 5 | 5 5 5 Average Carried 3 | . 3 3 Final Capacity 5 | 5 5 5 Final Carried 5 | 1 4 5 Class Distribution -------------------- 100% | Mutant Dominant Class ---------------- Mutant | -10/Materials Mutant | -9/Materials Resources | -11 -10 -9 ----------- Run | Yrd Mat Mat Matter Collected 427 | 260 122 45 Remotely . | . . . Salvage Created 464 | 58 237 169 Parts 25 | 2 14 9 Haulers Intercepted . | . . . Recyclers Shooed 1 | . . 1 Parts Field Recycled . | . . . Retrieved Matter . | . . . Parts Self-Destructed . | . . . Prevented . | . . . Parts Restored . | . . . Kills | -11 -10 -9 ------- Run | Yrd Mat Mat Combat Hostiles Destroyed 11 | . 7 4 Guns 7 | . 4 3 AOE 4 | . 3 1 Classes Destroyed 7 | 1 5 1 Builder 1 | . 1 . Tunneler 2 | 2 . . Operator 1 | . 1 . Watcher 1 | . 1 . Swarmer 3 | . 3 . Grunt 7 | . 4 3 Sentry 1 | . . 1 Best Kill Streak 5 | 2 5 2 Combat Bots Only 3 | . 3 2 Max Kills in Single Turn 3 | 1 3 1 Gunslinging . | . . . Exploded 2 | . 2 1 Melee . | . . . Uniques/NPCs Destroyed . | . . . Combat | -11 -10 -9 -------- Run | Yrd Mat Mat Hostile Shots Fired 140 | . 27 113 Missed 39 | . 6 33 Hits 101 | . 21 80 Projectile 101 | . 21 80 Damage Taken 1116 | . 229 887 Core 461 | . 54 407 Absorbed by Shields . | . . . Redirected to Shielding 3 | . 3 . Core Remaining (%) 89 | 100 78 . Volleys Fired 61 | 9 25 27 Largest 2 | 1 2 2 Hottest 101 | 50 90 101 Shots Fired 76 | 9 35 32 Gun 71 | 9 30 32 Cannon 3 | . 3 . Launcher 2 | . 2 . Special . | . . . Kinetic 3 | . 3 . Thermal 66 | 9 30 27 Explosive 2 | . 2 . Electromagnetic 5 | . . 5 Robot Hit Streak 6 | 3 6 4 Robot Miss Streak 5 | 2 4 5 Penetration Max . | . . . Secondary Targets . | . . . Shots Hit Robots 45 | 6 23 16 Core Hits 25 | 2 16 7 Critical Kills . | . . . Critical Parts Destroyed . | . . . Critical Strikes 3 | 1 2 . Burn 3 | 1 2 . Melee Attacks 7 | . . 7 Impact 7 | . . 7 Slashing . | . . . Piercing . | . . . Sneak Attacks . | . . . Combat Hostiles . | . . . Follow-up Attacks . | . . . Damage Inflicted 927 | 77 501 349 Guns 544 | 77 221 246 Cannons 36 | . 36 . Explosions 273 | . 244 29 Melee 74 | . . 74 Ramming . | . . . Kinetic 36 | . 36 . Thermal 517 | 77 221 219 Explosive 244 | . 244 . Electromagnetic 56 | . . 56 Impact 74 | . . 74 Slashing . | . . . Piercing . | . . . Highest Corruption 1 | . 1 . Average Corruption 1 | . 1 . Corruption Purged . | . . . Corruption Blocked . | . . . Overload Shots . | . . . Overflow Damage 21 | . 15 6 Projectiles . | . . . Explosions 21 | . 15 6 Melee . | . . . Knockbacks 1 | . 1 . Impact . | . . . Kinetic 1 | . 1 . Secondary . | . . . Self-Inflicted Damage 45 | . 19 26 Shots 2 | . 1 1 Rammed . | . . . Targets Rammed . | . . . Kicked . | . . . Crushed . | . . . Highest Temperature 326 | 70 135 326 Average Temperature 75 | 31 38 139 Received Heat Transfer 297 | . 90 207 Siege Activations . | . . . Martial Activations . | . . . Shielding Activations . | . . . Robots Disrupted . | . . . Combat Hostiles . | . . . Robots Corrupted . | . . . Combat Hostiles . | . . . Parts Fried . | . . . Impact Corruptions . | . . . Robots Melted . | . . . Combat Hostiles . | . . . Parts Melted 3 | 1 2 . Heat Transferred 1500 | 296 695 509 Parts Sabotaged . | . . . Parts Stolen . | . . . Parts Stripped . | . . . Power Chain Reactions 1 | . . 1 Alert | -11 -10 -9 ------- Run | Yrd Mat Mat Maximum Alert Level . | . . . Low Security (%) 100 | 100 100 100 Level 1 . | . . . Level 2 . | . . . Level 3 . | . . . Level 4 . | . . . Level 5 . | . . . High Security . | . . . Max Security . | . . . Peak Influence 119 | 10 119 57 Initial 40 | . . 40 Average 45 | 1 70 27 Influence Increases 404 | 10 237 157 Destroy 0b10 Robot/C 220 | . 140 80 Destroy 0b10 Robot/NC 25 | 10 15 . Destroy Leader 72 | . 52 20 Successful Hack 8 | . 1 7 Disable Machine 15 | . 15 . Destroy Structure 19 | . 14 5 Lose Combat Pursuer 45 | . . 45 Influence Decreases 404 | 10 140 254 Entered New Map 57 | . . 57 Time Decay 260 | 10 130 120 Lost Part 87 | . 10 77 Squads Dispatched 6 | . 4 2 Investigation 3 | . 2 1 Extermination . | . . . Reinforcement 3 | . 2 1 Assault . | . . . Garrison . | . . . Intercept . | . . . Searches Triggered . | . . . Construction Impeded . | . . . Haulers Reinforced . | . . . Active Scanning Responses . | . . . Cargo Convoy Interrupts . | . . . Stealth | -11 -10 -9 --------- Run | Yrd Mat Mat Distress Signals 2 | . . 2 Communications Jammed . | . . . Distress Signals . | . . . Times Spotted 32 | . 13 19 Peak Tracking Total 9 | . 3 9 Tactical Retreats 2 | . . 2 Traps | -11 -10 -9 ------- Run | Yrd Mat Mat Traps Triggered 2 | . 2 . Indirectly . | . . . Trap Hack Attempts . | . . . Triggered . | . . . Disarmed . | . . . Reprogrammed . | . . . Reused . | . . . Traps Extracted . | . . . Installed . | . . . Triggered . | . . . Machines | -11 -10 -9 ---------- Run | Yrd Mat Mat Machines Disabled 1 | . 1 . Max in Single Turn 1 | . 1 . Machines Repaired . | . . . Machines Dismantled . | . . . Machines Sabotaged . | . . . Overloaded Fab Kills . | . . . Hacking | -11 -10 -9 --------- Run | Yrd Mat Mat Machines Accessed 3 | . 2 1 Terminals 1 | . . 1 Fabricators . | . . . Repair Stations . | . . . Recycling Units 2 | . 2 . Scanalyzers . | . . . Garrison Access . | . . . Total Hacks 12 | . 5 7 Successful 9 | . 4 5 Failed 3 | . 1 2 Catastrophic . | . . . Database Lockouts . | . . . Manual . | . . . Terminals 7 | . . 7 Fabricators . | . . . Repair Stations . | . . . Recycling Units 5 | . 5 . Scanalyzers . | . . . Garrison Access . | . . . Terminal Hacks 5 | . . 5 Record 3 | . . 3 Robot Analysis 1 | . . 1 Registered Components 1 | . . 1 Fabricator Hacks . | . . . Repair Station Hacks . | . . . Recycling Unit Hacks 4 | . 4 . Recycle Component 1 | . 1 . Report Inventory 2 | . 2 . Retrieve Components 1 | . 1 . Scanalyzer . | . . . Garrison Access Hacks . | . . . Unauthorized Hacks . | . . . Terminals . | . . . Fabricators . | . . . Repair Stations . | . . . Recycling Units . | . . . Scanalyzers . | . . . Garrison Access . | . . . Data Cores Recovered . | . . . Used . | . . . Hacking Detections 2 | . 1 1 Full Trace Events 2 | . 1 1 Feedback Events . | . . . Feedback Blocked . | . . . Robot Schematics Acquired . | . . . Robots Built . | . . . Authchips . | . . . Time . | . . . Total Robot Build Rating . | . . . Part Schematics Acquired . | . . . Parts Built . | . . . Authchips . | . . . Time . | . . . Total Part Build Rating . | . . . Part Studies Acquired . | . . . Parts Repaired . | . . . Time . | . . . Parts Recycled 1 | . 1 . Recycled Matter . | . . . Retrieved Matter . | . . . Retrieved Components 6 | . 6 . Parts Scanalyzed . | . . . Part Schematics Acquired . | . . . Parts Damaged . | . . . Bothacking | -11 -10 -9 ------------ Run | Yrd Mat Mat Used RIF Installer . | . . . Robots Hacked . | . . . Non-combat . | . . . Combat . | . . . Robot Hacks Applied . | . . . Relay Couplers Released . | . . . Fabnet Peak Effective % . | . . . Robots Rewired . | . . . Allies Hacked . | . . . Hacks Repelled . | . . . Allies | -11 -10 -9 -------- Run | Yrd Mat Mat Total Allies . | . . . Largest Group . | . . . Highest-Rated Group . | . . . Highest-Rated Ally . | . . . Total Orders . | . . . Ally Attacks . | . . . Total Damage . | . . . Kills . | . . . Allies Corrupted . | . . . Allies Melted . | . . . Intel | -11 -10 -9 ------- Run | Yrd Mat Mat Active Infowar (turns) 66 | . . 66 Sensors 66 | . . 66 Robot Analysis Total 1 | . . 1 Derelict Logs Recovered . | . . . Drone Launches . | . . . Drone Recoveries . | . . . Exploration | -11 -10 -9 ------------- Run | Yrd Mat Mat Turns Passed 696 | 86 346 264 Spaces Moved 564 | 62 305 197 Core 116 | 4 51 61 Treads . | . . . Legs . | . . . Wheels 337 | 58 203 76 Hover 60 | . . 60 Flight 51 | . 51 . Fastest Speed 40 | 50 40 52 Average Speed 84 | 85 85 82 Slowest Speed 150 | 90 120 150 Overloaded Moves . | . . . Propulsion Burnouts . | . . . Robots Hopped . | . . . Potential Cave-ins . | . . . Cave-ins Triggered . | . . . Exploration Rate (%) 24 | 3 44 25 Regions Visited 2 Branch Regions . Pre-discovered Areas . | . . . Known Exits Taken . | . . . Unknown Exits Taken 2 | 1 1 . Scrap Searched . | . . . Spaces Dug . | . . . Terrain Destroyed 19 | . 16 3 Melee . | . . . Projectile . | . . . AOE 19 | . 16 3 Terrain Rammed . | . . . Walls Destroyed . | . . . Machines Disabled . | . . . Actions | -11 -10 -9 --------- Run | Yrd Mat Mat Total 698 | 86 357 255 Wait 1 | . . 1 Move 562 | 61 304 197 Hop . | . . . Pick Up 27 | 7 10 10 Fast Attach . | . . . Attach 17 | 5 3 9 Detach 4 | 1 2 1 Swap 9 | 1 6 2 Drop 10 | 2 7 1 Fire 61 | 9 25 27 Melee 7 | . . 7 Ram . | . . . Kick . | . . . Crush . | . . . Escape Stasis . | . . . Rewire . | . . . Trap . | . . . Miscellaneous . | . . . Route ------- -11/Scrapyard -10/Materials (discovered 2 exits: *Mat / [*Min]) -9/Materials History --------- Turn | Location | Event 7 | -11/Scrapyard | Discovered new exit (range 16) 87 | -11/Scrapyard | Entered Materials 169 | -10/Materials | Discovered new exit (range 7) 345 | -10/Materials | Discovered new exit (range 15) 355 | -10/Materials | Build established: Mutant 433 | -10/Materials | Entered another Materials area 433 | -9/Materials | Evolved 2 slots: Propulsion x1, Utility x1 636 | -9/Materials | Lost 5 parts (2n3w) 688 | -9/Materials | Core integrity fell below 50% 695 | -9/Materials | Core integrity fell below 20% 697 | -9/Materials | Destroyed by Y-45 Defender with Beam Rifle Last Messages --------------- 00637_ U-05 Engineer works on Material Compactor. 00639_ Acquired Imp. Hover Unit. 00641_ U-05 Engineer works on Material Compactor. 00642_ W-16 Scout sends out distress signal. 00642_ Acquired Imp. Hover Unit. 00642_ U-05 Engineer works on Material Compactor. 00645_ Acquired Imp. Hover Unit. 00647_ U-05 Engineer works on Material Compactor. 00656_ Ion Engine destroyed. 00676_ Dropped Lgt. Ion Engine. 00676_ Acquired Hvy. Hammer. 00677_ Imp. Hover Unit destroyed. 00681_ Sensor Array destroyed. 00687_ S-10 Pest destroyed. 00690_ Imp. Hover Unit destroyed. 00690_ R-06 Scavenger collects Lgt. Ion Engine. Map ----- +----------------------------------------------------+ | ?????????????????????????????????? #???????? | | ?????????????????????????????????? #???????? | | ???????????????##????????????????? #???????? | | ??????????##### ##?????? ????????? #???????? | | ??????????? #??????? ??????? #???????? | | ??????????? #?????###+####### #???????? | | ????????????!!! ??????? """ #???????? | | ?##########?!!! ????????# ""R" #???????? | | ?# #??! ?????????# "" " #???????? | | ?# """"" #?? ?????????# ######### | | ?# """"" #+##+########### | | ?# """"" # | | ?# """"" / | | ?# """"" # | | ?# """"" ### ########## """ " | | ?# """"" #?# #????????# """??" | | ?# #?# #????????# """ """??? | | ?###/######?# ########## """"" """??? | | ??# """ #### # # """" """ " | | ??# "T" / # """Y # """ | | ??# # # """ + "" | | ??# # # """ Y# ######### | | ??# ! !# # # #?? ??? | | ??# # # """%s## #? ""??? | | ??##+##### # """* ## # "???? | | ???# + """@m## # ?????? | | ???# ####### ss ## + ????? ? | | ???# ???????########### ###### % #????"" ? | | ???#? ??????????????????# #######+##?? """ ? | | ???? ?????????#????????## ## % # """ # | | ???#?????????? ####### # " # # | | ????????????? # """ !########? | | ???????????? T + "" #???????? | | ????????????? # """ #???????? | | ????????????? ####### # "" #???????? | | ?????????????? ????????## ## """ #???????? | | ????????????????????????# ##%""" #???????? | | ????????????????????????# ## """ #???????? | | ????????????????????????# ## " #???????? | | ????????????????????????# ## #???????? | | ????????????????????????# ##########???????? | | ????????????????????????# #????????????????? | | ????????????????????????# #????????????????? | | ????????????????????????# #????????????????? | | ????????????????????????# #????????????????? | | ????????????????????????# #????????????????? | | ????????????????????????# #????????????????? | | ????????????????????????# #????????????????? | | ?????????????? ????????## ##???????????????? | | ???????????# ####### #???????????????? | +----------------------------------------------------+ Best States ------------- Heat Dissipation 28 Energy Generation 10 Energy Capacity 250 Matter Stores 300 Matter Capacity 300 Sight Range 16 Robot Scan Range 14 Terrain Scan Density 10 Armor Coverage 150 Power Shielding 33 Evasion (%) 62 Item Schematics ----------------- None Robot Schematics ------------------ None Fabricated ------------ Nothing Repaired ---------- Nothing Studied --------- None Alien Tech Used ----------------- None Achievements -------------- None Challenges ------------ None Game ------ Seed AlphaOmegaRecalibrator Manual? 0 Play Time 00:19:07 Cumulative 2.3 hours Start 2026.02.02 @ 21:14:51 End 2026.02.02 @ 21:30:07 Sessions 1 Manual Loads 0 Difficulty Rogue Special Mode None Game No. 8 Rogue 5 Adventurer 3 Explorer 0 Win Type - Total 0 Types 0/0/0/0/0/0/0/0/0/0 Lore% 2 Gallery% 7 Achievement% 4 Wizard Run 0 Options --------- Layout 1 ASCII 0 Keyboard 0 Movement Numpad Keybinds 0 Fullscreen 2 Font 24/Proggy Map View 50x35 Zoom Use 12% Tactical HUD 1 Map Filters NONE Filters NONE Steam 1 RUN: b15b121c-51e2-44b1-a3c1-514e15cc6b0f